fUSD/lending_fUSD_20250804
["ID","MTS","AMOUNT","RATE_DAILY","PERIOD"]
[377245429,1754306056707,-8555.46,0.00041917,2]
[377245430,1754306056716,-12684.74,0.00041917,2]
[377245431,1754306056726,-1233.77,0.00041917,2]
[377245432,1754306056736,-1370.77,0.00041917,2]
[377245433,1754306056745,-400.0,0.00041917,2]
[377245434,1754306056756,-920.62,0.00041917,2]
[377245435,1754306056766,-1888.39,0.00041917,2]
[377245436,1754306056775,-1431.25,0.00041917,2]
[377245437,1754306056785,-1147.83,0.00041917,2]
[377245438,1754306056795,-1817.19,0.00041917,2]
[377245439,1754306056805,-2271.19,0.00041917,2]
[377245440,1754306056816,-1907.39,0.00041917,2]
[377245441,1754306056826,-400.0,0.00041917,2]
[377245442,1754306056836,-2068.75,0.00041917,2]
[377245443,1754306056846,-2687.79,0.00041917,2]
[377245444,1754306056856,-2214.61,0.00041917,2]
[377245445,1754306056866,-400.0,0.00041917,2]
[377245446,1754306056877,-802.2,0.00041917,2]
[377245447,1754306056887,-670.02,0.00041917,2]
[377245448,1754306056896,-1614.22,0.00041917,2]
[377245449,1754306056906,-579.73,0.00041917,2]
[377245450,1754306056916,-1690.87,0.00041917,2]
[377245451,1754306056925,-78789.54,0.00041917,2]
[377245452,1754306056935,-1475.5,0.00041917,2]
[377245453,1754306056944,-1594.85,0.00041917,2]
[377245454,1754306056954,-400.0,0.00041917,2]
[377245455,1754306056967,-1475.71,0.00041917,2]
[377245456,1754306056976,-1258.18,0.00041917,2]
[377245457,1754306056986,-1043.71,0.00041917,2]
[377245458,1754306056996,-1778.93,0.00041917,2]
[377245459,1754306057007,-2169.93,0.00041917,2]
[377245460,1754306057017,-498.32,0.00041917,2]
[377245461,1754306057027,-11200.4,0.00041917,2]
[377245462,1754306057039,-898.73,0.00041917,2]
[377245463,1754306057049,-3118.04,0.00041917,2]
[377245464,1754306057060,-1556.28,0.00041917,2]
[377245465,1754306057070,-1857.39,0.00041917,2]
[377245466,1754306057081,-7506.25,0.00041917,2]
[377245467,1754306057092,-1191.23,0.00041917,2]
[377245468,1754306057103,-1349.97,0.00041917,2]
[377245469,1754306057112,-1074.04,0.00041917,2]
[377245470,1754306057123,-3769.24,0.00041917,2]
[377245471,1754306057134,-988.14,0.00041917,2]
[377245472,1754306057144,-577.79,0.00041917,2]
[377245473,1754306057155,-1741.31,0.00041917,2]
[377245474,1754306057164,-1932.57,0.00041917,2]
[377245475,1754306057175,-1252.42,0.00041917,2]
[377245476,1754306057184,-3095.42,0.00041917,2]
[377245477,1754306057194,-1555.06,0.00041917,2]
[377245478,1754306057203,-3383.45,0.00041917,2]
[377245479,1754306057213,-400.0,0.00041917,2]
[377245480,1754306057223,-495.93,0.00041917,2]
[377245481,1754306057233,-400.0,0.00041917,2]
[377245482,1754306057243,-2072.61,0.00041917,2]
[377245483,1754306057252,-1985.84,0.00041917,2]
[377245484,1754306057261,-1753.85,0.00041917,2]
[377245485,1754306057271,-400.0,0.00041917,2]
[377245486,1754306057281,-1602.8,0.00041917,2]
[377245487,1754306057292,-400.0,0.00041917,2]
[377245488,1754306057302,-3681.37,0.00041917,2]
[377245489,1754306057312,-1605.29,0.00041917,2]
[377245490,1754306057323,-1613.77,0.00041917,2]
[377245491,1754306057334,-1726.45,0.00041917,2]
[377245492,1754306057344,-1657.08,0.00041917,2]
[377245493,1754306057354,-1109.72,0.00041917,2]
[377245494,1754306057365,-400.0,0.00041917,2]
[377245495,1754306057375,-1265.39,0.00041917,2]
[377245496,1754306057386,-531.77,0.00041917,2]
[377245497,1754306057397,-1790.09,0.00041917,2]
[377245498,1754306057408,-165.9,0.00041917,2]
[377245499,1754306057418,-994.35,0.00041917,2]
[377245500,1754306057428,-2197.37,0.00041917,2]
[377245501,1754306057438,-1207.63,0.00041917,2]
[377245502,1754306057448,-400.0,0.00041917,2]
[377245503,1754306057458,-1697.44,0.00041917,2]
[377245504,1754306057468,-1044.0,0.00041917,2]
[377245505,1754306057481,-1273.07,0.00041917,2]
[377245506,1754306057490,-971.37,0.00041917,2]
[377245507,1754306057500,-400.0,0.00041917,2]
[377245508,1754306057510,-1153.38,0.00041917,2]
[377245509,1754306057520,-1809.15,0.00041917,2]
[377245510,1754306057530,-8777.73,0.00041917,2]
[377245511,1754306057539,-596.6,0.00041917,2]
[377245512,1754306057549,-2275.44,0.00041917,2]
[377245513,1754306057559,-1037.03,0.00041917,2]
[377245514,1754306057569,-599.54,0.00041917,2]
[377245515,1754306057955,-490.62,0.00041917,2]
[377245516,1754306057977,-1600.04,0.00041917,2]
[377245517,1754306057987,-1213.48,0.00041917,2]
[377245518,1754306057997,-1097.82,0.00041917,2]
[377245519,1754306058008,-797.89,0.00041917,2]
[377245520,1754306058018,-6082.8,0.00041917,2]
[377245521,1754306058029,-448.66,0.00041917,2]
[377245522,1754306058039,-596.19,0.00041917,2]
[377245523,1754306058050,-10707.5,0.00041917,2]
[377245524,1754306058060,-1518.17,0.00041917,2]
[377245525,1754306058070,-4934.5,0.00041917,2]
[377245526,1754306058080,-2575.64,0.00041917,2]
[377245527,1754306058090,-400.0,0.00041917,2]
[377245528,1754306058100,-1048.1,0.00041917,2]
[377245529,1754306058110,-2188.32,0.00041917,2]
[377245530,1754306058121,-1283.58,0.00041917,2]
[377245531,1754306058131,-1614.51,0.00041917,2]
[377245532,1754306058141,-1936.12,0.00041917,2]
[377245533,1754306058151,-400.0,0.00041917,2]
[377245534,1754306058161,-586.94,0.00041917,2]
[377245535,1754306058171,-1367.27,0.00041917,2]
[377245536,1754306058182,-300.49268329,0.00041917,2]
[377245537,1754306058192,-400.0,0.00041917,2]
[377245538,1754306058202,-1400.57,0.00041917,2]
[377245539,1754306058213,-500.49,0.00041917,2]
[377245540,1754306058223,-1339.76,0.00041917,2]
[377245541,1754306058234,-400.0,0.00041917,2]
[377245542,1754306058244,-3431.45,0.00041917,2]
[377245543,1754306058254,-1254.59,0.00041917,2]
[377245544,1754306058265,-1128.88,0.00041917,2]
[377245545,1754306058275,-16704.11,0.00041917,2]
[377245546,1754306058285,-1799.3,0.00041917,2]
[377245547,1754306058296,-400.0,0.00041917,2]
[377245548,1754306058305,-1494.19,0.00041917,2]
[377245549,1754306058315,-4814.39,0.00041917,2]
[377245550,1754306058325,-871.27,0.00041917,2]
[377245551,1754306058336,-1442.54,0.00041917,2]
[377245552,1754306058346,-2112.05,0.00041917,2]
[377245553,1754306058357,-525.6,0.00041917,2]
[377245554,1754306058367,-400.0,0.00041917,2]
[377245555,1754306058377,-2310.1,0.00041917,2]
[377245556,1754306058387,-637.09,0.00041917,2]
[377245557,1754306058396,-953.11,0.00041917,2]
[377245558,1754306058406,-571.02,0.00041917,2]
[377245559,1754306058416,-1651.01,0.00041917,2]
[377245560,1754306058426,-845.12,0.00041917,2]
[377245561,1754306058436,-2192.65,0.00041917,2]
[377245562,1754306058446,-533.36,0.00041917,2]
[377245563,1754306058457,-958.06,0.00041917,2]
[377245564,1754306058467,-1650.75,0.00041917,2]
[377245565,1754306058478,-3310.33,0.00041917,2]
[377245566,1754306058488,-781.29,0.00041917,2]
[377245567,1754306058497,-1000.0,0.0004197,14]
[377245568,1754306058507,-50000.0,0.00042,42]
[377245569,1754306058517,-50000.0,0.00042,52]
[377245570,1754306058527,-2821.29,0.00042,14]
[377245571,1754306058537,-714.04,0.00042,30]
[377245572,1754306058546,-301.33,0.00042033,30]
[377245573,1754306058557,-2588.34,0.00042051,2]
[377245574,1754306058567,-358.78,0.00042082,30]
[377245575,1754306058577,-8087.30939542,0.00042106,10]
[377245576,1754306058587,-150.0,0.00042107,2]
[377245577,1754306058597,-1179.88,0.0004219,120]
[377245578,1754306058606,-151.0,0.00042191,14]
[377245579,1754306058616,-151.0,0.00042191,14]
[377245580,1754306058627,-151.0,0.00042191,14]
[377245581,1754306058636,-151.0,0.00042191,14]
[377245582,1754306058647,-547.58,0.00042191,2]
[377245583,1754306058656,-458.04,0.00042191,2]
[377245584,1754306058667,-1200.66,0.00042191,2]
[377245585,1754306058677,-520.3,0.00042191,2]
[377245586,1754306058687,-586.47,0.00042191,2]
[377245587,1754306058698,-400.0,0.00042191,2]
[377245588,1754306058707,-452.57,0.00042191,2]
[377245589,1754306058718,-1404.01,0.00042191,2]
[377245590,1754306058728,-400.0,0.00042191,2]
[377245591,1754306058737,-472.84,0.00042191,2]
[377245592,1754306058747,-1341.8,0.00042191,2]
[377245593,1754306058757,-484.06,0.00042191,2]
[377245594,1754306058767,-667.41,0.00042191,2]
[377245595,1754306058776,-1693.03,0.00042191,2]
[377245596,1754306058786,-537.19,0.00042191,2]
[377245597,1754306058796,-849.99,0.00042191,2]
[377245598,1754306058805,-931.14,0.00042191,2]
[377245599,1754306058815,-458.07,0.00042191,2]
[377245600,1754306058825,-1076.15,0.00042191,2]
[377245601,1754306058835,-400.0,0.00042191,2]
[377245602,1754306058845,-1903.28,0.00042191,2]
[377245603,1754306058854,-400.0,0.00042191,2]
[377245604,1754306058864,-643.67,0.00042191,2]
[377245605,1754306058876,-1064.8,0.00042191,2]
[377245606,1754306058885,-595.01,0.00042191,2]
[377245607,1754306058896,-1756.29,0.00042191,2]
[377245608,1754306058905,-824.14,0.00042191,2]
[377245609,1754306058915,-400.0,0.00042191,2]
[377245610,1754306058925,-1696.93,0.00042191,2]
[377245611,1754306058935,-767.86,0.00042191,2]
[377245612,1754306058946,-400.0,0.00042191,2]
[377245613,1754306058955,-448.43603644,0.00042191,2]
[377245614,1754306058970,-400.0,0.00042191,2]
[377245615,1754306058979,-1492.28,0.00042191,2]
[377245616,1754306058989,-661.87,0.00042191,2]
[377245617,1754306058999,-400.0,0.00042191,2]
[377245618,1754306059010,-400.45,0.00042191,2]
[377245619,1754306059020,-1939.24,0.00042191,2]
[377245620,1754306059030,-786.11,0.00042191,2]
[377245621,1754306059039,-835.46,0.00042191,2]
[377245622,1754306059049,-1820.66,0.00042191,2]
[377245623,1754306059059,-463.48,0.00042191,2]
[377245624,1754306059069,-400.0,0.00042191,2]
[377245625,1754306059079,-1385.33,0.00042191,2]
[377245626,1754306059089,-499.13,0.00042191,2]
[377245627,1754306059100,-498.89,0.00042191,2]
[377245628,1754306059110,-400.0,0.00042191,2]
[377245629,1754306059120,-470.4232574,0.00042191,2]
[377245630,1754306059130,-400.0,0.00042191,2]
[377245631,1754306059140,-1516.62,0.00042191,2]
[377245632,1754306059150,-900.0,0.00042191,2]
[377245633,1754306059160,-550.11,0.00042191,2]
[377245634,1754306059170,-1067.05,0.00042191,2]
[377245635,1754306059179,-454.35,0.00042191,2]
[377245636,1754306059189,-915.17,0.00042191,2]
[377245637,1754306059198,-1153.57,0.00042191,2]
[377245638,1754306059208,-400.0,0.00042191,2]
[377245639,1754306059218,-470.47,0.00042191,2]
[377245640,1754306059229,-398.87754009,0.00042191,2]
[377245641,1754306059239,-1488.11,0.00042191,2]
[377245642,1754306059248,-742.88,0.00042191,2]
[377245643,1754306059259,-661.14,0.00042191,2]
[377245644,1754306059269,-441.54,0.00042191,2]
[377245645,1754306059279,-916.79,0.00042191,2]
[377245646,1754306059288,-587.55,0.00042191,2]
[377245647,1754306059298,-424.37,0.00042191,2]
[377245648,1754306059308,-1102.43,0.00042191,2]
[377245649,1754306059317,-400.0,0.00042191,2]
[377245650,1754306059327,-1188.91,0.00042191,2]
[377245651,1754306059336,-1819.37,0.00042191,2]
[377245652,1754306059347,-439.11,0.00042191,2]
[377245653,1754306059357,-400.0,0.00042191,2]
[377245654,1754306059366,-1119.27,0.00042191,2]
[377245655,1754306059376,-400.0,0.00042191,2]
[377245656,1754306059385,-884.11,0.00042191,2]
[377245657,1754306059395,-465.18,0.00042191,2]
[377245658,1754306059405,-400.0,0.00042191,2]
[377245659,1754306059414,-1124.7,0.00042191,2]
[377245660,1754306059424,-953.16,0.00042191,2]
[377245661,1754306059434,-449.54,0.00042191,2]
[377245662,1754306059444,-171.78808632,0.00042191,2]
[377245663,1754306059453,-977.67,0.00042191,2]
[377245664,1754306059463,-1903.44,0.00042191,2]
[377245665,1754306059473,-2558.85,0.00042191,2]
[377245666,1754306059483,-480.36,0.00042191,2]
[377245667,1754306059492,-377.84580198,0.00042191,2]
[377245668,1754306059502,-1797.0,0.00042191,2]
[377245669,1754306059512,-400.0,0.00042191,2]
[377245670,1754306059522,-1399.58,0.00042191,2]
[377245671,1754306059531,-2716.06,0.00042191,2]
[377245672,1754306059541,-459.32,0.00042191,2]
[377245673,1754306059551,-687.73,0.00042191,2]
[377245674,1754306059561,-400.0,0.00042191,2]
[377245675,1754306059570,-1027.4,0.00042191,2]
[377245676,1754306059579,-452.62,0.00042191,2]
[377245677,1754306059589,-400.0,0.00042191,2]
[377245678,1754306059600,-743.48,0.00042191,2]
[377245679,1754306059610,-4159.78,0.00042191,2]
[377245680,1754306059619,-2022.23,0.00042191,2]
[377245681,1754306059835,-529.07589382,0.00042191,2]
[377245682,1754306059845,-500.0,0.00042191,2]
[377245683,1754306059855,-239.15470211,0.00042191,2]
[377245684,1754306059865,-1103.2,0.00042191,2]
[377245685,1754306059875,-2146.76,0.00042191,2]
[377245686,1754306059885,-697.9,0.00042191,2]
[377245687,1754306059895,-700.27,0.00042191,2]
[377245688,1754306059905,-1197.92,0.00042191,2]
[377245689,1754306059915,-442.05,0.00042191,2]
[377245690,1754306059924,-400.0,0.00042191,2]
[377245691,1754306059934,-763.21,0.00042191,2]
[377245692,1754306059944,-664.53,0.00042191,2]
[377245693,1754306059954,-862.35,0.00042191,2]
[377245694,1754306059967,-624.93,0.00042191,2]
[377245695,1754306059977,-793.15,0.00042191,2]
[377245696,1754306059986,-639.19,0.00042191,2]
[377245697,1754306059996,-605.24,0.00042191,2]
[377245698,1754306060006,-400.0,0.00042191,2]
[377245699,1754306060016,-1841.68,0.00042191,2]
[377245700,1754306060025,-2472.68,0.00042191,2]
[377245701,1754306060034,-1091.38,0.00042191,2]
[377245702,1754306060044,-569.15,0.00042191,2]
[377245703,1754306060054,-482.87,0.00042191,2]
[377245704,1754306060064,-1179.1,0.00042191,2]
[377245705,1754306060074,-400.0,0.00042191,2]
[377245706,1754306060083,-1320.13,0.00042191,2]
[377245707,1754306060093,-1348.28,0.00042191,2]
[377245708,1754306060103,-908.97,0.00042191,2]
[377245709,1754306060113,-1407.62,0.00042191,2]
[377245710,1754306060123,-1144.27,0.00042191,2]
[377245711,1754306060133,-448.56,0.00042191,2]
[377245712,1754306060142,-400.0,0.00042191,2]
[377245713,1754306060152,-853.71,0.00042191,2]
[377245714,1754306060161,-609.84,0.00042191,2]
[377245715,1754306060171,-400.0,0.00042191,2]
[377245716,1754306060181,-1274.99,0.00042191,2]
[377245717,1754306060191,-600.02,0.00042191,2]
[377245718,1754306060201,-800.16,0.00042191,2]
[377245719,1754306060210,-2778.93,0.00042191,2]
[377245720,1754306060220,-500.6,0.00042191,2]
[377245721,1754306060230,-499.94,0.00042191,2]
[377245722,1754306060240,-627.38,0.00042191,2]
[377245723,1754306060250,-787.7,0.00042191,2]
[377245724,1754306060259,-461.32,0.00042191,2]
[377245725,1754306060269,-1107.49,0.00042191,2]
[377245726,1754306060279,-400.0,0.00042191,2]
[377245727,1754306060289,-1182.54,0.00042191,2]
[377245728,1754306060298,-2273.69,0.00042191,2]
[377245729,1754306060307,-790.39,0.00042191,2]
[377245730,1754306060317,-400.0,0.00042191,2]
[377245731,1754306060326,-400.0,0.00042191,2]
[377245732,1754306060336,-400.0,0.00042191,2]
[377245733,1754306060347,-2544.09,0.00042191,2]
[377245734,1754306060357,-746.2,0.00042191,2]
[377245735,1754306060366,-1066.14,0.00042191,2]
[377245736,1754306060376,-513.6,0.00042191,2]
[377245737,1754306060385,-856.62,0.00042191,2]
[377245738,1754306060395,-445.82,0.00042191,2]
[377245739,1754306060404,-1070.42,0.00042191,2]
[377245740,1754306060414,-548.68,0.00042191,2]
[377245741,1754306060423,-400.0,0.00042191,2]
[377245742,1754306060433,-413.36,0.00042191,2]
[377245743,1754306060442,-400.0,0.00042191,2]
[377245744,1754306060452,-460.79,0.00042191,2]
[377245745,1754306060461,-865.19,0.00042191,2]
[377245746,1754306060471,-1968.28,0.00042191,2]
[377245747,1754306060481,-1422.91,0.00042191,2]
[377245748,1754306060491,-191.64155796,0.00042191,2]
[377245749,1754306060501,-522.51720868,0.00042191,2]
[377245750,1754306060510,-1119.16,0.00042191,2]
[377245751,1754306060520,-1354.16,0.00042191,2]
[377245752,1754306060529,-625.15,0.00042191,2]
[377245753,1754306060539,-400.0,0.00042191,2]
[377245754,1754306060549,-1598.25,0.00042191,2]
[377245755,1754306060560,-1192.41,0.00042191,2]
[377245756,1754306060571,-400.0,0.00042191,2]
[377245757,1754306060581,-668.58,0.00042191,2]
[377245758,1754306060591,-575.89,0.00042191,2]
[377245759,1754306060600,-1116.34,0.00042191,2]
[377245760,1754306060610,-1214.62,0.00042191,2]
[377245761,1754306060750,-1137.04,0.00042191,2]
[377245762,1754306060761,-1590.64,0.00042191,2]
[377245763,1754306060772,-400.0,0.00042191,2]
[377245764,1754306060781,-1138.57,0.00042191,2]
[377245765,1754306060792,-1069.29,0.00042191,2]
[377245766,1754306060801,-400.0,0.00042191,2]
[377245767,1754306060811,-400.0,0.00042191,2]
[377245768,1754306060821,-1131.33,0.00042191,2]
[377245769,1754306060830,-388.82598177,0.00042191,2]
[377245770,1754306060839,-400.0,0.00042191,2]
[377245771,1754306060849,-1171.06,0.00042191,2]
[377245772,1754306060858,-894.77,0.00042191,2]
[377245773,1754306060868,-1384.7,0.00042191,2]
[377245774,1754306060877,-599.89,0.00042191,2]
[377245775,1754306060887,-2355.79,0.00042191,2]
[377245776,1754306060896,-1091.28,0.00042191,2]
[377245777,1754306060905,-262.2937335,0.00042191,2]
[377245778,1754306060915,-400.0,0.00042191,2]
[377245779,1754306060925,-2327.34,0.00042191,2]
[377245780,1754306060935,-773.66,0.00042191,2]
[377245781,1754306060944,-501.83,0.00042191,2]
[377245782,1754306060953,-1915.51,0.00042191,2]
[377245783,1754306060965,-781.86,0.00042191,2]
[377245784,1754306060975,-400.0,0.00042191,2]
[377245785,1754306060984,-829.75,0.00042191,2]
[377245786,1754306060993,-892.62,0.00042191,2]
[377245787,1754306061002,-538.38,0.00042191,2]
[377245788,1754306061013,-1000.94,0.00042191,2]
[377245789,1754306061023,-1098.02,0.00042191,2]
[377245790,1754306061031,-1453.05,0.00042191,2]
[377245791,1754306061042,-695.84,0.00042191,2]
[377245792,1754306061051,-437.7,0.00042191,2]
[377245793,1754306061060,-1242.82,0.00042191,2]
[377245794,1754306061070,-724.66,0.00042191,2]
[377245795,1754306061080,-1119.1,0.00042191,2]
[377245796,1754306061089,-917.85,0.00042191,2]
[377245797,1754306061098,-2290.17,0.00042191,2]
[377245798,1754306061107,-1165.58,0.00042191,2]
[377245799,1754306061117,-400.0,0.00042191,2]
[377245800,1754306061126,-1308.63,0.00042191,2]
[377245801,1754306061135,-906.75,0.00042191,2]
[377245802,1754306061144,-801.64,0.00042191,2]
[377245803,1754306061153,-564.37,0.00042191,2]
[377245804,1754306061163,-918.46,0.00042191,2]
[377245805,1754306061172,-322.12024004,0.00042191,2]
[377245806,1754306061181,-2104.64,0.00042191,2]
[377245807,1754306061190,-1334.51,0.00042191,2]
[377245808,1754306061199,-781.51,0.00042191,2]
[377245809,1754306061208,-1040.59,0.00042191,2]
[377245810,1754306061217,-1397.01,0.00042191,2]
[377245811,1754306061226,-1874.18,0.00042191,2]
[377245812,1754306061235,-1021.01,0.00042191,2]
[377245813,1754306061244,-1353.35,0.00042191,2]
[377245814,1754306061253,-400.0,0.00042191,2]
[377245815,1754306061262,-1025.08,0.00042191,2]
[377245816,1754306061270,-627.8,0.00042191,2]
[377245817,1754306061279,-1868.95,0.00042191,2]
[377245818,1754306061288,-468.7,0.00042191,2]
[377245819,1754306061297,-914.79,0.00042191,2]
[377245820,1754306061306,-1387.83,0.00042191,2]
[377245821,1754306061315,-1314.14,0.00042191,2]
[377245822,1754306061324,-1038.98,0.00042191,2]
[377245823,1754306061334,-1014.44,0.00042191,2]
[377245824,1754306061343,-935.88,0.00042191,2]
[377245825,1754306061352,-925.88,0.00042191,2]
[377245826,1754306061362,-400.0,0.00042191,2]
[377245827,1754306061372,-590.39,0.00042191,2]
[377245828,1754306061381,-1614.1,0.00042191,2]
[377245829,1754306061391,-710.0,0.00042191,2]
[377245830,1754306061400,-1412.5,0.00042191,2]
[377245831,1754306061409,-608.78,0.00042191,2]
[377245832,1754306061419,-400.0,0.00042191,2]
[377245833,1754306061428,-1252.59,0.00042191,2]
[377245834,1754306061437,-856.19,0.00042191,2]
[377245835,1754306061446,-1142.6,0.00042191,2]
[377245836,1754306061455,-400.0,0.00042191,2]
[377245837,1754306061464,-400.0,0.00042191,2]
[377245838,1754306061474,-695.98,0.00042191,2]
[377245839,1754306061483,-793.48,0.00042191,2]
[377245840,1754306061493,-810.9,0.00042191,2]
[377245841,1754306061502,-1752.3,0.00042191,2]
[377245842,1754306061511,-315.7,0.00042191,2]
[377245843,1754306061521,-1639.2,0.00042191,2]
[377245844,1754306061530,-1057.57,0.00042191,2]
[377245845,1754306061539,-400.0,0.00042191,2]
[377245846,1754306061549,-1894.1,0.00042191,2]
[377245847,1754306061557,-400.0,0.00042191,2]
[377245848,1754306061567,-400.0,0.00042191,2]
[377245849,1754306061576,-1899.23,0.00042191,2]
[377245850,1754306061586,-1066.82,0.00042191,2]
[377245851,1754306061595,-1326.33,0.00042191,2]
[377245852,1754306061605,-1189.48,0.00042191,2]
[377245853,1754306061614,-405.69,0.00042191,2]
[377245854,1754306061623,-1704.15,0.00042191,2]
[377245855,1754306061633,-1046.61,0.00042191,2]
[377245856,1754306061642,-833.04,0.00042191,2]
[377245857,1754306061651,-400.0,0.00042191,2]
[377245858,1754306061660,-400.0,0.00042191,2]
[377245859,1754306061670,-684.99,0.00042191,2]
[377245860,1754306061679,-400.0,0.00042191,2]
[377245861,1754306061688,-925.69,0.00042191,2]
[377245862,1754306061698,-482.48,0.00042191,2]
[377245863,1754306061707,-596.8,0.00042191,2]
[377245864,1754306061716,-1463.3,0.00042191,2]
[377245865,1754306061725,-1295.25,0.00042191,2]
[377245866,1754306061734,-2145.64,0.00042191,2]
[377245867,1754306061743,-1283.66,0.00042191,2]
[377245868,1754306061752,-758.52,0.00042191,2]
[377245869,1754306061761,-721.69,0.00042191,2]
[377245870,1754306061770,-1612.63,0.00042191,2]
[377245871,1754306061780,-766.66,0.00042191,2]
[377245872,1754306061789,-453.42,0.00042191,2]
[377245873,1754306061799,-627.97,0.00042191,2]
[377245874,1754306061808,-988.46,0.00042191,2]
[377245875,1754306061817,-7192.74,0.00042191,2]
[377245876,1754306061826,-400.0,0.00042191,2]
[377245877,1754306061835,-400.0,0.00042191,2]
[377245878,1754306061845,-1762.88,0.00042191,2]
[377245879,1754306061854,-896.0,0.00042191,2]
[377245880,1754306061863,-400.0,0.00042191,2]
[377245881,1754306061873,-1472.33,0.00042191,2]
[377245882,1754306061882,-1303.02,0.00042191,2]
[377245883,1754306061891,-796.7,0.00042191,2]
[377245884,1754306061901,-1414.12,0.00042191,2]
[377245885,1754306061910,-700.57,0.00042191,2]
[377245886,1754306061918,-553.07,0.00042191,2]
[377245887,1754306061928,-986.33,0.00042191,2]
[377245888,1754306061937,-658.58,0.00042191,2]
[377245889,1754306061947,-400.0,0.00042191,2]
[377245890,1754306061956,-400.0,0.00042191,2]
[377245891,1754306061968,-499.21,0.00042191,2]
[377245892,1754306061977,-1050.51,0.00042191,2]
[377245893,1754306061986,-1836.51,0.00042191,2]
[377245894,1754306061996,-682.1,0.00042191,2]
[377245895,1754306062008,-739.68,0.00042191,2]
[377245896,1754306062018,-1274.01,0.00042191,2]
[377245897,1754306062027,-651.05,0.00042191,2]
[377245898,1754306062037,-1321.92,0.00042191,2]
[377245899,1754306062047,-1303.02,0.00042191,2]
[377245900,1754306062056,-822.07,0.00042191,2]
[377245901,1754306062066,-1091.32,0.00042191,2]
[377245902,1754306062075,-396.90973534,0.00042191,2]
[377245903,1754306062085,-562.8,0.00042191,2]
[377245904,1754306062094,-999.83,0.00042191,2]
[377245905,1754306062103,-793.84,0.00042191,2]
[377245906,1754306062113,-1242.64,0.00042191,2]
[377245907,1754306062122,-1330.82,0.00042191,2]
[377245908,1754306062130,-596.36,0.00042191,2]
[377245909,1754306062140,-558.09,0.00042191,2]
[377245910,1754306062149,-1446.54,0.00042191,2]
[377245911,1754306062160,-1346.03,0.00042191,2]
[377245912,1754306062177,-1481.75,0.00042191,2]
[377245913,1754306062187,-879.7,0.00042191,2]
[377245914,1754306062197,-1081.44,0.00042191,2]
[377245915,1754306062206,-2294.74,0.00042191,2]
[377245916,1754306062216,-2185.11,0.00042191,2]
[377245917,1754306062227,-528.1,0.00042191,2]
[377245918,1754306062237,-768.31,0.00042191,2]
[377245919,1754306062247,-764.62,0.00042191,2]
[377245920,1754306062257,-2154.11,0.00042191,2]
[377245921,1754306062267,-426.77619122,0.00042191,2]
[377245922,1754306062277,-1687.51,0.00042191,2]
[377245923,1754306062286,-884.68,0.00042191,2]
[377245924,1754306062295,-1797.87,0.00042191,2]
[377245925,1754306062304,-670.62,0.00042191,2]
[377245926,1754306062313,-466.07,0.00042191,2]
[377245927,1754306062323,-1427.05,0.00042191,2]
[377245928,1754306062333,-659.47,0.00042191,2]